fUST/lending_fUST_20250408
["ID","MTS","AMOUNT","RATE_DAILY","PERIOD"]
[357448873,1744071046380,-500.0,0.00022465,2]
[357448874,1744071046390,-500.0,0.00022473,2]
[357448875,1744071046399,-362.19133297,0.00022473,2]
[357448876,1744071046409,-207.4,0.00022573,2]
[357448877,1744071046418,-187.18479055,0.00022639,2]
[357448878,1744071046427,-500.0,0.00022739,2]
[357448879,1744071046437,-500.0,0.00022739,2]
[357448880,1744071046446,-500.0,0.00022739,2]
[357448881,1744071046456,-500.0,0.00022739,2]
[357448882,1744071046466,-500.0,0.00022739,2]
[357448883,1744071046475,-500.0,0.00022739,2]
[357448884,1744071046485,-500.0,0.00022739,2]
[357448885,1744071046494,-500.0,0.00022739,2]
[357448886,1744071046503,-500.0,0.00022739,2]
[357448887,1744071046513,-500.0,0.00022739,2]
[357448888,1744071046523,-500.0,0.00022739,2]
[357448889,1744071046533,-500.0,0.00022739,2]
[357448890,1744071046542,-500.0,0.00022739,2]
[357448891,1744071046552,-500.0,0.00022739,2]
[357448892,1744071046562,-500.0,0.00022739,2]
[357448893,1744071046571,-500.0,0.00022739,2]
[357448894,1744071046581,-500.0,0.00022739,2]
[357448895,1744071046590,-187.64518314,0.00022739,2]
[357448896,1744071046600,-500.0,0.00022739,2]
[357448897,1744071046609,-500.0,0.00022739,2]
[357448898,1744071046619,-500.0,0.00022739,2]
[357448899,1744071046629,-500.0,0.00022739,2]
[357448900,1744071046639,-500.0,0.00022739,2]
[357448901,1744071046649,-500.0,0.00022739,2]
[357448902,1744071046659,-500.0,0.00022739,2]
[357448903,1744071046669,-500.0,0.00022739,2]
[357448904,1744071046679,-500.0,0.00022739,2]
[357448905,1744071046689,-500.0,0.00022739,2]
[357448906,1744071046699,-500.0,0.00022739,2]
[357448907,1744071046710,-500.0,0.00022739,2]
[357448908,1744071046719,-500.0,0.00022739,2]
[357448909,1744071046730,-500.0,0.00022739,2]
[357448910,1744071046739,-500.0,0.00022739,2]
[357448911,1744071046749,-500.0,0.00022739,2]
[357448912,1744071046759,-500.0,0.00022739,2]
[357448913,1744071046770,-500.0,0.00022739,2]
[357448914,1744071046779,-516.68,0.00022739,2]
[357448915,1744071046789,-500.0,0.00022739,2]
[357448916,1744071046799,-500.0,0.00022739,2]
[357448917,1744071046809,-500.0,0.00022739,2]
[357448918,1744071046819,-552.85,0.00022739,2]
[357448919,1744071046830,-500.0,0.00022739,2]
[357448920,1744071046840,-500.0,0.00022739,2]
[357448921,1744071046850,-1077.56,0.00022739,2]
[357448922,1744071046860,-500.0,0.00022739,2]
[357448923,1744071046870,-500.0,0.00022739,2]
[357448924,1744071046880,-500.0,0.00022739,2]
[357448925,1744071046891,-500.0,0.00022739,2]
[357448926,1744071046902,-500.0,0.00022739,2]
[357448927,1744071046912,-500.0,0.00022739,2]
[357448928,1744071046921,-500.0,0.00022739,2]
[357448929,1744071046932,-922.53,0.00022739,2]
[357448930,1744071046943,-500.0,0.00022739,2]
[357448931,1744071046953,-500.0,0.00022739,2]
[357448932,1744071046964,-500.0,0.00022739,2]
[357448933,1744071046974,-635.57155888,0.00022739,2]
[357448934,1744071046983,-500.0,0.00022739,2]
[357448935,1744071046993,-846.4,0.00022739,2]
[357448936,1744071047003,-593.42,0.00022739,2]
[357448937,1744071047013,-606.9,0.00022739,2]
[357448938,1744071047023,-500.0,0.00022739,2]
[357448939,1744071047033,-500.0,0.00022739,2]
[357448940,1744071047043,-500.0,0.00022739,2]
[357448941,1744071047053,-500.0,0.00022739,2]
[357448942,1744071047063,-1031.3,0.00022739,2]
[357448943,1744071047073,-500.0,0.00022739,2]
[357448944,1744071047083,-500.0,0.00022739,2]
[357448945,1744071047093,-1005.06,0.00022739,2]
[357448946,1744071047103,-500.0,0.00022739,2]
[357448947,1744071047113,-500.0,0.00022739,2]
[357448948,1744071047124,-500.0,0.00022739,2]
[357448949,1744071047134,-500.0,0.00022739,2]
[357448950,1744071047144,-500.0,0.00022739,2]
[357448951,1744071047154,-500.0,0.00022739,2]
[357448952,1744071047164,-500.0,0.00022739,2]
[357448953,1744071047173,-500.0,0.00022739,2]
[357448954,1744071047183,-500.0,0.00022739,2]
[357448955,1744071047194,-500.0,0.00022739,2]
[357448956,1744071047204,-500.0,0.00022739,2]
[357448957,1744071047214,-500.0,0.00022739,2]
[357448958,1744071047224,-538.4,0.00022739,2]
[357448959,1744071047234,-500.0,0.00022739,2]
[357448960,1744071047250,-762.57,0.00022739,2]
[357448961,1744071047260,-500.0,0.00022739,2]
[357448962,1744071047270,-500.0,0.00022739,2]
[357448963,1744071047280,-500.0,0.00022739,2]
[357448964,1744071047290,-500.0,0.00022739,2]
[357448965,1744071047300,-500.0,0.00022739,2]
[357448966,1744071047310,-500.0,0.00022739,2]
[357448967,1744071047321,-810.87,0.00022739,2]
[357448968,1744071047332,-708.78,0.00022739,2]
[357448969,1744071047341,-510.83132507,0.00022739,2]
[357448970,1744071047351,-500.0,0.00022739,2]
[357448971,1744071047362,-500.0,0.00022739,2]
[357448972,1744071047372,-500.0,0.00022739,2]
[357448973,1744071047382,-500.0,0.00022739,2]
[357448974,1744071047392,-732.62,0.00022739,2]
[357448975,1744071047402,-500.0,0.00022739,2]
[357448976,1744071047412,-500.0,0.00022739,2]
[357448977,1744071047422,-500.0,0.00022739,2]
[357448978,1744071047432,-1306.4,0.00022739,2]
[357448979,1744071047442,-1694.24,0.00022739,2]
[357448980,1744071047452,-1372.44,0.00022739,2]
[357448981,1744071047463,-1550.69,0.00022739,2]
[357448982,1744071047474,-643.40520607,0.00022739,2]
[357448983,1744071047484,-500.0,0.00022739,2]
[357448984,1744071047495,-500.0,0.00022739,2]
[357448985,1744071047505,-500.0,0.00022739,2]
[357448986,1744071047516,-719.64,0.00022739,2]
[357448987,1744071047527,-527.99,0.00022739,2]
[357448988,1744071047537,-500.0,0.00022739,2]
[357448989,1744071047547,-774.73,0.00022739,2]
[357448990,1744071047557,-500.0,0.00022739,2]
[357448991,1744071047567,-500.0,0.00022739,2]
[357448992,1744071047578,-910.87,0.00022739,2]
[357448993,1744071047588,-500.0,0.00022739,2]
[357448994,1744071047598,-1062.59,0.00022739,2]
[357448995,1744071047608,-500.0,0.00022739,2]
[357448996,1744071047619,-788.7,0.00022739,2]
[357448997,1744071047629,-500.0,0.00022739,2]
[357448998,1744071047639,-500.0,0.00022739,2]
[357448999,1744071047650,-1455.88,0.00022739,2]
[357449000,1744071047660,-803.42,0.00022739,2]
[357449001,1744071047670,-599.48,0.00022739,2]
[357449002,1744071047680,-500.0,0.00022739,2]
[357449003,1744071047691,-500.0,0.00022739,2]
[357449004,1744071047702,-528.31,0.00022739,2]
[357449005,1744071047712,-500.0,0.00022739,2]
[357449006,1744071047722,-3057.52,0.00022739,2]
[357449007,1744071047733,-500.0,0.00022739,2]
[357449008,1744071047744,-980.08,0.00022739,2]
[357449009,1744071047755,-500.0,0.00022739,2]
[357449010,1744071047766,-500.0,0.00022739,2]
[357449011,1744071047776,-202.82888636,0.00022739,2]
[357449012,1744071047788,-500.0,0.00022739,2]
[357449013,1744071047798,-500.0,0.00022739,2]
[357449014,1744071047809,-500.0,0.00022739,2]
[357449015,1744071047819,-500.0,0.00022739,2]
[357449016,1744071047830,-1788.07,0.00022739,2]
[357449017,1744071047840,-500.0,0.00022739,2]
[357449018,1744071047851,-1130.24,0.00022739,2]
[357449019,1744071047861,-500.0,0.00022739,2]
[357449020,1744071047872,-500.0,0.00022739,2]
[357449021,1744071047883,-500.0,0.00022739,2]
[357449022,1744071047893,-500.0,0.00022739,2]
[357449023,1744071047904,-453.15147832,0.00022739,2]
[357449024,1744071047914,-500.0,0.00022739,2]
[357449025,1744071047925,-500.0,0.00022739,2]
[357449026,1744071047935,-1034.15,0.00022739,2]
[357449027,1744071047946,-703.26,0.00022739,2]
[357449028,1744071047956,-521.62,0.00022739,2]
[357449029,1744071047967,-500.0,0.00022739,2]
[357449030,1744071047977,-912.33,0.00022739,2]
[357449031,1744071047987,-500.0,0.00022739,2]
[357449032,1744071047998,-500.0,0.00022739,2]
[357449033,1744071048008,-500.0,0.00022739,2]
[357449034,1744071048018,-668.68,0.00022739,2]
[357449035,1744071048029,-500.0,0.00022739,2]
[357449036,1744071048040,-1029.77,0.00022739,2]
[357449037,1744071048050,-500.0,0.00022739,2]
[357449038,1744071048061,-500.0,0.00022739,2]
[357449039,1744071048071,-500.0,0.00022739,2]
[357449040,1744071048081,-722.87,0.00022739,2]
[357449041,1744071048091,-500.0,0.00022739,2]
[357449042,1744071048101,-797.61,0.00022739,2]
[357449043,1744071048112,-727.13,0.00022739,2]
[357449044,1744071048122,-500.0,0.00022739,2]
[357449045,1744071048132,-500.0,0.00022739,2]
[357449046,1744071048144,-500.0,0.00022739,2]
[357449047,1744071048154,-1414.13,0.00022739,2]
[357449048,1744071048165,-625.97,0.00022739,2]
[357449049,1744071048175,-580.7,0.00022739,2]
[357449050,1744071048186,-500.0,0.00022739,2]
[357449051,1744071048196,-500.0,0.00022739,2]
[357449052,1744071048206,-500.0,0.00022739,2]
[357449053,1744071048216,-500.0,0.00022739,2]
[357449054,1744071048226,-5091.58,0.00022739,2]
[357449055,1744071048236,-500.0,0.00022739,2]
[357449056,1744071048248,-656.67,0.00022739,2]
[357449057,1744071048261,-500.0,0.00022739,2]
[357449058,1744071048271,-500.0,0.00022739,2]
[357449059,1744071048283,-505.42,0.00022739,2]
[357449060,1744071048293,-500.0,0.00022739,2]
[357449061,1744071048302,-739.59,0.00022739,2]
[357449062,1744071048313,-386.04044607,0.00022739,2]
[357449063,1744071048323,-500.0,0.00022739,2]
[357449064,1744071048335,-500.0,0.00022739,2]
[357449065,1744071048345,-500.0,0.00022739,2]
[357449066,1744071048355,-500.0,0.00022739,2]
[357449067,1744071048365,-500.0,0.00022739,2]
[357449068,1744071048375,-1154.46,0.00022739,2]
[357449069,1744071048384,-500.0,0.00022739,2]
[357449070,1744071048395,-576.56,0.00022739,2]
[357449071,1744071048405,-500.0,0.00022739,2]
[357449072,1744071048414,-500.0,0.00023013,2]
[357449073,1744071048425,-500.0,0.00023013,2]
[357449074,1744071048437,-500.0,0.00023013,2]
[357449075,1744071048449,-500.0,0.00023013,2]
[357449076,1744071048460,-500.0,0.00023013,2]
[357449077,1744071048471,-500.0,0.00023013,2]
[357449078,1744071048481,-500.0,0.00023013,2]
[357449079,1744071048493,-500.0,0.00023013,2]
[357449080,1744071048503,-500.0,0.00023013,2]
[357449081,1744071048518,-500.0,0.00023013,2]
[357449082,1744071048528,-500.0,0.00023013,2]
[357449083,1744071048539,-500.0,0.00023013,2]
[357449084,1744071048550,-500.0,0.00023013,2]
[357449085,1744071048562,-500.0,0.00023013,2]
[357449086,1744071048575,-500.0,0.00023013,2]
[357449087,1744071048590,-247.68008531,0.00023013,2]
[357449088,1744071048602,-500.0,0.00023013,2]
[357449089,1744071048613,-500.0,0.00023013,2]
[357449090,1744071048623,-500.0,0.00023013,2]
[357449091,1744071048634,-500.0,0.00023013,2]
[357449092,1744071048644,-500.0,0.00023013,2]
[357449093,1744071048654,-500.0,0.00023013,2]
[357449094,1744071048665,-500.0,0.00023013,2]
[357449095,1744071048675,-500.0,0.00023013,2]
[357449096,1744071048685,-500.0,0.00023013,2]
[357449097,1744071048695,-500.0,0.00023013,2]
[357449098,1744071048705,-500.0,0.00023013,2]
[357449099,1744071048715,-500.0,0.00023013,2]
[357449100,1744071048725,-500.0,0.00023013,2]
[357449101,1744071048735,-500.0,0.00023013,2]
[357449102,1744071048747,-500.0,0.00023013,2]
[357449103,1744071048759,-500.0,0.00023013,2]
[357449104,1744071048770,-516.68,0.00023013,2]
[357449105,1744071048782,-500.0,0.00023013,2]
[357449106,1744071048792,-500.0,0.00023013,2]
[357449107,1744071048804,-500.0,0.00023013,2]
[357449108,1744071048815,-552.85,0.00023013,2]
[357449109,1744071048826,-500.0,0.00023013,2]
[357449110,1744071048836,-500.0,0.00023013,2]
[357449111,1744071048847,-1077.56,0.00023013,2]
[357449112,1744071048857,-500.0,0.00023013,2]
[357449113,1744071048868,-500.0,0.00023013,2]
[357449114,1744071048878,-500.0,0.00023013,2]
[357449115,1744071048888,-500.0,0.00023013,2]
[357449116,1744071048899,-500.0,0.00023013,2]
[357449117,1744071048910,-500.0,0.00023013,2]
[357449118,1744071048921,-500.0,0.00023013,2]
[357449119,1744071049077,-922.53,0.00023013,2]
[357449120,1744071049088,-500.0,0.00023013,2]
[357449121,1744071049098,-500.0,0.00023013,2]
[357449122,1744071049107,-500.0,0.00023013,2]
[357449123,1744071049117,-500.0,0.00023013,2]
[357449124,1744071049127,-846.4,0.00023013,2]
[357449125,1744071049137,-593.42,0.00023013,2]
[357449126,1744071049147,-606.9,0.00023013,2]
[357449127,1744071049156,-500.0,0.00023013,2]
[357449128,1744071049166,-500.0,0.00023013,2]
[357449129,1744071049176,-500.0,0.00023013,2]
[357449130,1744071049185,-500.0,0.00023013,2]
[357449131,1744071049195,-1031.3,0.00023013,2]
[357449132,1744071049205,-500.0,0.00023013,2]
[357449133,1744071049214,-1005.06,0.00023013,2]
[357449134,1744071049224,-500.0,0.00023013,2]
[357449135,1744071049233,-500.0,0.00023013,2]
[357449136,1744071049244,-500.0,0.00023013,2]
[357449137,1744071049258,-500.0,0.00023013,2]
[357449138,1744071049268,-500.0,0.00023013,2]
[357449139,1744071049278,-500.0,0.00023013,2]
[357449140,1744071049289,-500.0,0.00023013,2]
[357449141,1744071049299,-500.0,0.00023013,2]
[357449142,1744071049309,-500.0,0.00023013,2]
[357449143,1744071049319,-500.0,0.00023013,2]
[357449144,1744071049329,-500.0,0.00023013,2]
[357449145,1744071049339,-500.0,0.00023013,2]
[357449146,1744071049350,-500.0,0.00023013,2]
[357449147,1744071049360,-762.57,0.00023013,2]
[357449148,1744071049369,-500.0,0.00023013,2]
[357449149,1744071049379,-500.0,0.00023013,2]
[357449150,1744071049389,-500.0,0.00023013,2]
[357449151,1744071049401,-500.0,0.00023013,2]
[357449152,1744071049412,-500.0,0.00023013,2]
[357449153,1744071049422,-500.0,0.00023013,2]
[357449154,1744071049432,-810.87,0.00023013,2]
[357449155,1744071049442,-708.78,0.00023013,2]
[357449156,1744071049451,-500.0,0.00023013,2]
[357449157,1744071049461,-500.0,0.00023013,2]
[357449158,1744071049471,-500.0,0.00023013,2]
[357449159,1744071049480,-500.0,0.00023013,2]
[357449160,1744071049490,-732.62,0.00023013,2]
[357449161,1744071049500,-500.0,0.00023013,2]
[357449162,1744071049511,-500.0,0.00023013,2]
[357449163,1744071049520,-500.0,0.00023013,2]
[357449164,1744071049530,-1306.4,0.00023013,2]
[357449165,1744071049539,-1694.24,0.00023013,2]
[357449166,1744071049549,-1372.44,0.00023013,2]
[357449167,1744071049559,-1550.69,0.00023013,2]
[357449168,1744071049569,-500.0,0.00023013,2]
[357449169,1744071049578,-500.0,0.00023013,2]
[357449170,1744071049587,-500.0,0.00023013,2]
[357449171,1744071049597,-719.64,0.00023013,2]
[357449172,1744071049607,-527.99,0.00023013,2]
[357449173,1744071049617,-500.0,0.00023013,2]
[357449174,1744071049627,-774.73,0.00023013,2]
[357449175,1744071049637,-500.0,0.00023013,2]
[357449176,1744071049646,-500.0,0.00023013,2]
[357449177,1744071049656,-910.87,0.00023013,2]
[357449178,1744071049666,-500.0,0.00023013,2]
[357449179,1744071049676,-1062.59,0.00023013,2]
[357449180,1744071049686,-788.7,0.00023013,2]
[357449181,1744071049695,-500.0,0.00023013,2]
[357449182,1744071049705,-500.0,0.00023013,2]
[357449183,1744071049715,-500.0,0.00023013,2]
[357449184,1744071049725,-1455.88,0.00023013,2]
[357449185,1744071049735,-803.42,0.00023013,2]
[357449186,1744071049745,-599.48,0.00023013,2]
[357449187,1744071049755,-500.0,0.00023013,2]
[357449188,1744071049766,-500.0,0.00023013,2]
[357449189,1744071049776,-528.31,0.00023013,2]
[357449190,1744071049786,-500.0,0.00023013,2]
[357449191,1744071049796,-3057.52,0.00023013,2]
[357449192,1744071049805,-500.0,0.00023013,2]
[357449193,1744071049815,-980.08,0.00023013,2]
[357449194,1744071049825,-526.37730025,0.00023013,2]
[357449195,1744071049835,-467.51538319,0.00023013,2]
[357449196,1744071049847,-500.0,0.00023013,2]
[357449197,1744071049857,-500.0,0.00023013,2]
[357449198,1744071049867,-500.0,0.00023013,2]
[357449199,1744071049876,-500.0,0.00023013,2]
[357449200,1744071049886,-1788.07,0.00023013,2]
[357449201,1744071049896,-500.0,0.00023013,2]
[357449202,1744071049905,-1130.24,0.00023013,2]
[357449203,1744071049915,-500.0,0.00023013,2]
[357449204,1744071049925,-500.0,0.00023013,2]
[357449205,1744071049934,-500.0,0.00023013,2]
[357449206,1744071049944,-500.0,0.00023013,2]
[357449207,1744071049953,-500.0,0.00023013,2]
[357449208,1744071049963,-500.0,0.00023013,2]
[357449209,1744071049973,-1034.15,0.00023013,2]
[357449210,1744071049982,-703.26,0.00023013,2]
[357449211,1744071049992,-521.62,0.00023013,2]
[357449212,1744071050002,-500.0,0.00023013,2]
[357449213,1744071050011,-912.33,0.00023013,2]
[357449214,1744071050021,-500.0,0.00023013,2]
[357449215,1744071050030,-500.0,0.00023013,2]
[357449216,1744071050040,-497.45898502,0.00023013,2]
[357449217,1744071050050,-500.0,0.00023013,2]
[357449218,1744071050059,-1029.77,0.00023013,2]
[357449219,1744071050069,-500.0,0.00023013,2]
[357449220,1744071050079,-668.68,0.00023013,2]
[357449221,1744071050088,-500.0,0.00023013,2]
[357449222,1744071050098,-500.0,0.00023013,2]
[357449223,1744071050107,-722.87,0.00023013,2]
[357449224,1744071050116,-500.0,0.00023013,2]
[357449225,1744071050126,-797.61,0.00023013,2]
[357449226,1744071050135,-727.13,0.00023013,2]
[357449227,1744071050144,-500.0,0.00023013,2]
[357449228,1744071050154,-442.87342691,0.00023013,2]
[357449229,1744071050163,-500.0,0.00023013,2]
[357449230,1744071050172,-1414.13,0.00023013,2]
[357449231,1744071050183,-625.97,0.00023013,2]
[357449232,1744071050193,-580.7,0.00023013,2]
[357449233,1744071050202,-500.0,0.00023013,2]
[357449234,1744071050212,-535.79116177,0.00023013,2]
[357449235,1744071050221,-500.0,0.00023013,2]
[357449236,1744071050230,-5091.58,0.00023013,2]
[357449237,1744071050242,-500.0,0.00023013,2]
[357449238,1744071050253,-484.73781268,0.00023013,2]
[357449239,1744071050264,-656.67,0.00023013,2]
[357449240,1744071050273,-500.0,0.00023013,2]
[357449241,1744071050284,-500.0,0.00023013,2]
[357449242,1744071050295,-505.42,0.00023013,2]
[357449243,1744071050304,-500.0,0.00023013,2]
[357449244,1744071050314,-739.59,0.00023013,2]
[357449245,1744071050324,-500.0,0.00023013,2]
[357449246,1744071050334,-500.0,0.00023013,2]
[357449247,1744071050344,-500.0,0.00023013,2]
[357449248,1744071050354,-500.0,0.00023013,2]
[357449249,1744071050364,-500.0,0.00023013,2]
[357449250,1744071050375,-1154.46,0.00023013,2]
[357449251,1744071050385,-500.0,0.00023013,2]
[357449252,1744071050394,-500.0,0.00023013,2]
[357449253,1744071050404,-576.56,0.00023013,2]
[357449254,1744071050413,-500.0,0.00023287,2]
[357449255,1744071050423,-500.0,0.00023287,2]
[357449256,1744071050433,-500.0,0.00023287,2]
[357449257,1744071050442,-500.0,0.00023287,2]
[357449258,1744071050452,-500.0,0.00023287,2]
[357449259,1744071050461,-500.0,0.00023287,2]
[357449260,1744071050471,-500.0,0.00023287,2]
[357449261,1744071050480,-500.0,0.00023287,2]
[357449262,1744071050490,-500.0,0.00023287,2]
[357449263,1744071050500,-500.0,0.00023287,2]
[357449264,1744071050510,-500.0,0.00023287,2]
[357449265,1744071050520,-500.0,0.00023287,2]
[357449266,1744071050529,-500.0,0.00023287,2]
[357449267,1744071050539,-200.0,0.00023287,2]
[357449268,1744071050551,-500.0,0.00023287,2]
[357449269,1744071050561,-500.0,0.00023287,2]
[357449270,1744071050571,-500.0,0.00023287,2]
[357449271,1744071050581,-500.0,0.00023287,2]
[357449272,1744071050591,-500.0,0.00023287,2]
[357449273,1744071050601,-500.0,0.00023287,2]
[357449274,1744071050610,-500.0,0.00023287,2]
[357449275,1744071050620,-500.0,0.00023287,2]
[357449276,1744071050629,-500.0,0.00023287,2]
[357449277,1744071050639,-500.0,0.00023287,2]
[357449278,1744071050649,-500.0,0.00023287,2]
[357449279,1744071050658,-500.0,0.00023287,2]
[357449280,1744071050668,-500.0,0.00023287,2]
[357449281,1744071050678,-516.68,0.00023287,2]
[357449282,1744071050688,-504.12627612,0.00023287,2]
[357449283,1744071050698,-500.0,0.00023287,2]
[357449284,1744071050708,-500.0,0.00023287,2]
[357449285,1744071050718,-552.85,0.00023287,2]
[357449286,1744071050728,-500.0,0.00023287,2]
[357449287,1744071050737,-500.0,0.00023287,2]
[357449288,1744071050747,-1077.56,0.00023287,2]
[357449289,1744071050756,-500.0,0.00023287,2]
[357449290,1744071050766,-500.0,0.00023287,2]
[357449291,1744071050775,-500.0,0.00023287,2]
[357449292,1744071050786,-500.0,0.00023287,2]
[357449293,1744071050795,-253.09969325,0.00023287,2]
[357449294,1744071050804,-500.0,0.00023287,2]
[357449295,1744071050814,-500.0,0.00023287,2]
[357449296,1744071050824,-922.53,0.00023287,2]
[357449297,1744071050834,-500.0,0.00023287,2]
[357449298,1744071050843,-500.0,0.00023287,2]
[357449299,1744071050853,-500.0,0.00023287,2]
[357449300,1744071050863,-846.4,0.00023287,2]
[357449301,1744071050873,-593.42,0.00023287,2]
[357449302,1744071050883,-606.9,0.00023287,2]
[357449303,1744071050892,-500.0,0.00023287,2]
[357449304,1744071050902,-500.0,0.00023287,2]
[357449305,1744071050912,-500.0,0.00023287,2]
[357449306,1744071050921,-1031.3,0.00023287,2]
[357449307,1744071050931,-500.0,0.00023287,2]
[357449308,1744071050943,-1005.06,0.00023287,2]
[357449309,1744071050952,-500.0,0.00023287,2]
[357449310,1744071050961,-500.0,0.00023287,2]
[357449311,1744071050971,-500.0,0.00023287,2]
[357449312,1744071050980,-500.0,0.00023287,2]
[357449313,1744071050990,-500.0,0.00023287,2]
[357449314,1744071051000,-518.15661133,0.00023287,2]
[357449315,1744071051010,-500.0,0.00023287,2]
[357449316,1744071051020,-500.0,0.00023287,2]
[357449317,1744071051031,-500.0,0.00023287,2]
[357449318,1744071051040,-202.05166238,0.00023287,2]
[357449319,1744071051049,-500.0,0.00023287,2]
[357449320,1744071051059,-500.0,0.00023287,2]
[357449321,1744071051070,-500.0,0.00023287,2]
[357449322,1744071051080,-762.57,0.00023287,2]
[357449323,1744071051090,-500.0,0.00023287,2]
[357449324,1744071051099,-500.0,0.00023287,2]
[357449325,1744071051109,-500.0,0.00023287,2]
[357449326,1744071051118,-500.0,0.00023287,2]
[357449327,1744071051129,-500.0,0.00023287,2]
[357449328,1744071051139,-500.0,0.00023287,2]
[357449329,1744071051149,-810.87,0.00023287,2]
[357449330,1744071051158,-708.78,0.00023287,2]
[357449331,1744071051168,-500.0,0.00023287,2]
[357449332,1744071051177,-500.0,0.00023287,2]
[357449333,1744071051187,-500.0,0.00023287,2]
[357449334,1744071051196,-500.0,0.00023287,2]
[357449335,1744071051205,-732.62,0.00023287,2]
[357449336,1744071051215,-500.0,0.00023287,2]
[357449337,1744071051224,-500.0,0.00023287,2]
[357449338,1744071051233,-500.0,0.00023287,2]
[357449339,1744071051243,-1306.4,0.00023287,2]
[357449340,1744071051256,-1694.24,0.00023287,2]
[357449341,1744071051265,-1372.44,0.00023287,2]
[357449342,1744071051277,-1550.69,0.00023287,2]
[357449343,1744071051288,-500.0,0.00023287,2]
[357449344,1744071051298,-500.0,0.00023287,2]
[357449345,1744071051308,-500.0,0.00023287,2]
[357449346,1744071051317,-719.64,0.00023287,2]
[357449347,1744071051327,-527.99,0.00023287,2]
[357449348,1744071051337,-500.0,0.00023287,2]
[357449349,1744071051347,-774.73,0.00023287,2]
[357449350,1744071051356,-500.0,0.00023287,2]
[357449351,1744071051366,-500.0,0.00023287,2]
[357449352,1744071051376,-910.87,0.00023287,2]
[357449353,1744071051385,-500.0,0.00023287,2]
[357449354,1744071051395,-1062.59,0.00023287,2]
[357449355,1744071051405,-788.7,0.00023287,2]
[357449356,1744071051415,-500.0,0.00023287,2]
[357449357,1744071051425,-500.0,0.00023287,2]
[357449358,1744071051435,-500.0,0.00023287,2]
[357449359,1744071051445,-1455.88,0.00023287,2]
[357449360,1744071051455,-803.42,0.00023287,2]
[357449361,1744071051464,-599.48,0.00023287,2]
[357449362,1744071051487,-500.0,0.00023287,2]
[357449363,1744071051509,-510.04771922,0.00023287,2]
[357449364,1744071051529,-528.31,0.00023287,2]
[357449365,1744071051549,-500.0,0.00023287,2]
[357449366,1744071051567,-3057.52,0.00023287,2]
[357449367,1744071051578,-500.0,0.00023287,2]
[357449368,1744071051591,-980.08,0.00023287,2]
[357449369,1744071051604,-500.0,0.00023287,2]
[357449370,1744071051616,-500.0,0.00023287,2]
[357449371,1744071051628,-500.0,0.00023287,2]
[357449372,1744071051640,-500.0,0.00023287,2]